fUST/lending_fUST_20250302
["ID","MTS","AMOUNT","RATE_DAILY","PERIOD"]
[355073532,1740886331059,-687.64,0.00027475,2]
[355073533,1740886331069,-521.17,0.00027475,2]
[355073534,1740886331078,-928.01,0.00027475,2]
[355073535,1740886331087,-500.0,0.00027475,2]
[355073536,1740886331097,-583.22,0.00027475,2]
[355073537,1740886331107,-500.0,0.00027475,2]
[355073538,1740886331117,-821.72,0.00027475,2]
[355073539,1740886331134,-703.97,0.00027475,2]
[355073540,1740886331144,-646.1,0.00027475,2]
[355073541,1740886331154,-1413.57,0.00027475,2]
[355073542,1740886331164,-548.28,0.00027475,2]
[355073543,1740886331174,-1102.8,0.00027475,2]
[355073544,1740886331184,-694.6,0.00027475,2]
[355073545,1740886331194,-540.61,0.00027475,2]
[355073546,1740886331203,-500.0,0.00027475,2]
[355073547,1740886331213,-500.0,0.00027475,2]
[355073548,1740886331222,-623.08,0.00027475,2]
[355073549,1740886331232,-1137.28,0.00027475,2]
[355073550,1740886331242,-1017.35,0.00027475,2]
[355073551,1740886331255,-1330.22,0.00027475,2]
[355073552,1740886331265,-500.0,0.00027475,2]
[355073553,1740886331275,-1066.57,0.00027475,2]
[355073554,1740886331286,-500.0,0.00027475,2]
[355073555,1740886331295,-2368.56,0.00027475,2]
[355073556,1740886331306,-1359.76,0.00027475,2]
[355073557,1740886331315,-500.0,0.00027479,2]
[355073558,1740886331327,-44663.48832144,0.000275,2]
[355073559,1740886331336,-775.67006106,0.000275,30]
[355073560,1740886331346,-500.0,0.00027507,2]
[355073561,1740886331356,-179.42583732,0.00027526,2]
[355073562,1740886331366,-500.0,0.00027534,2]
[355073563,1740886331376,-529.63773464,0.00027557,2]
[355073564,1740886331387,-804.84617857,0.00027561,2]
[355073565,1740886331396,-587.0,0.00027582,2]
[355073566,1740886331406,-19624.61182001,0.00027591,2]
[355073567,1740886331415,-160.0,0.00027591,2]
[355073568,1740886331425,-160.0,0.00027591,2]
[355073569,1740886331435,-160.0,0.00027591,2]
[355073570,1740886331445,-13513.14,0.00027626,2]
[355073571,1740886331455,-7624.93,0.00027626,2]
[355073572,1740886331464,-1615.71,0.00027626,5]
[355073573,1740886331474,-2961.69,0.00027626,2]
[355073574,1740886331484,-2330.23,0.00027626,2]
[355073575,1740886331494,-2306.22,0.00027626,2]
[355073576,1740886331504,-500.0,0.00027626,2]
[355073577,1740886331514,-308.93054464,0.00027638,2]
[355073578,1740886331524,-632.19,0.00027638,2]
[355073579,1740886331534,-2053.23,0.00027638,2]
[355073580,1740886331545,-1289.53,0.00027638,2]
[355073581,1740886331554,-542.79,0.00027638,2]
[355073582,1740886331565,-729.52,0.00027638,2]
[355073583,1740886331575,-2911.18,0.00027638,2]
[355073584,1740886331585,-543.53,0.00027638,2]
[355073585,1740886331595,-1263.1,0.00027638,2]
[355073586,1740886331606,-2931.73,0.00027638,2]
[355073587,1740886331616,-500.0,0.00027638,2]
[355073588,1740886331627,-1979.56,0.00027638,2]
[355073589,1740886331636,-523.18,0.00027638,2]
[355073590,1740886331646,-500.0,0.00027638,2]
[355073591,1740886331656,-500.0,0.00027638,2]
[355073592,1740886331667,-2314.06,0.00027638,2]
[355073593,1740886331677,-2260.58,0.00027638,2]
[355073594,1740886331687,-828.38,0.00027638,2]
[355073595,1740886331697,-500.0,0.00027638,2]
[355073596,1740886331707,-2081.84,0.00027638,2]
[355073597,1740886331717,-1076.19,0.00027638,2]
[355073598,1740886331727,-1339.9,0.00027638,2]
[355073599,1740886331737,-500.0,0.00027638,2]
[355073600,1740886331747,-3469.31,0.00027638,2]
[355073601,1740886331757,-1990.46,0.00027638,2]
[355073602,1740886331767,-971.07,0.00027638,2]
[355073603,1740886331776,-1249.98,0.00027638,2]
[355073604,1740886331786,-2179.06,0.00027638,2]
[355073605,1740886331796,-1012.24,0.00027638,2]
[355073606,1740886331806,-3060.91,0.00027638,2]
[355073607,1740886331816,-559.99,0.00027638,2]
[355073608,1740886331826,-615.9,0.00027638,2]
[355073609,1740886331835,-1996.5,0.00027638,2]
[355073610,1740886331845,-4060.12,0.00027638,2]
[355073611,1740886331855,-10606.09,0.00027638,2]
[355073612,1740886331865,-2799.89,0.00027638,2]
[355073613,1740886331875,-1333.19,0.00027638,2]
[355073614,1740886331884,-719.18,0.00027638,2]
[355073615,1740886331894,-835.72,0.00027638,2]
[355073616,1740886332124,-1367.07,0.00027638,2]
[355073617,1740886332136,-2939.4,0.00027638,2]
[355073618,1740886332146,-1214.18,0.00027638,2]
[355073619,1740886332156,-4481.86,0.00027638,2]
[355073620,1740886332166,-548.69,0.00027638,2]
[355073621,1740886332176,-659.46,0.00027638,2]
[355073622,1740886332186,-4158.95,0.00027638,2]
[355073623,1740886332197,-500.0,0.00027638,2]
[355073624,1740886332207,-848.25,0.00027638,2]
[355073625,1740886332216,-25489.85,0.00027638,2]
[355073626,1740886332226,-1593.02,0.00027638,2]
[355073627,1740886332236,-3140.53,0.00027638,2]
[355073628,1740886332246,-716.21,0.00027638,2]
[355073629,1740886332260,-500.0,0.00027638,2]
[355073630,1740886332270,-4639.3,0.00027638,2]
[355073631,1740886332280,-500.0,0.00027638,2]
[355073632,1740886332291,-14182.49,0.00027638,2]
[355073633,1740886332300,-1188.6,0.00027638,2]
[355073634,1740886332310,-592.63,0.00027638,2]
[355073635,1740886332319,-1643.74,0.00027638,2]
[355073636,1740886332332,-12307.96,0.00027638,2]
[355073637,1740886332342,-1368.42,0.00027638,2]
[355073638,1740886332352,-669.91,0.00027638,2]
[355073639,1740886332361,-500.0,0.00027638,2]
[355073640,1740886332371,-3975.37,0.00027638,2]
[355073641,1740886332380,-501.67,0.00027638,2]
[355073642,1740886332390,-1802.14,0.00027638,2]
[355073643,1740886332400,-962.58,0.00027638,2]
[355073644,1740886332410,-789.66,0.00027638,2]
[355073645,1740886332420,-1159.12,0.00027638,2]
[355073646,1740886332430,-20055.8,0.00027638,2]
[355073647,1740886332440,-2419.35,0.00027638,2]
[355073648,1740886332450,-4017.73,0.00027638,2]
[355073649,1740886332459,-2550.68,0.00027638,2]
[355073650,1740886332470,-1400.73,0.00027638,2]
[355073651,1740886332479,-596.32,0.00027638,2]
[355073652,1740886332490,-718.57,0.00027638,2]
[355073653,1740886332500,-1849.98,0.00027638,2]
[355073654,1740886332510,-18199.11,0.00027638,2]
[355073655,1740886332519,-500.0,0.00027638,2]
[355073656,1740886332530,-6307.07,0.00027638,2]
[355073657,1740886332541,-3500.41,0.00027638,2]
[355073658,1740886332550,-740.47,0.00027638,2]
[355073659,1740886332560,-500.0,0.00027638,2]
[355073660,1740886332570,-1093.67,0.00027638,2]
[355073661,1740886332581,-11719.04,0.00027638,2]
[355073662,1740886332591,-2757.89,0.00027638,2]
[355073663,1740886332602,-511.99225277,0.00027638,2]
[355073664,1740886332612,-1586.33,0.00027638,2]
[355073665,1740886332623,-23789.19,0.00027638,2]
[355073666,1740886332634,-1230.43,0.00027638,2]
[355073667,1740886332644,-375.09294461,0.00027638,2]
[355073668,1740886332654,-3144.58,0.00027638,2]
[355073669,1740886332664,-733.81,0.00027638,2]
[355073670,1740886332675,-6887.34,0.00027638,2]
[355073671,1740886332685,-526.15,0.00027639,2]
[355073672,1740886332695,-1168.03,0.00027639,2]
[355073673,1740886332705,-500.0,0.00027639,2]
[355073674,1740886332715,-930.89,0.00027639,2]
[355073675,1740886332725,-602.99,0.00027639,2]
[355073676,1740886332735,-500.03,0.00027639,2]
[355073677,1740886332745,-912.13,0.00027639,2]
[355073678,1740886332755,-500.0,0.00027639,2]
[355073679,1740886332766,-500.0,0.00027639,2]
[355073680,1740886332776,-860.85,0.00027639,2]
[355073681,1740886332786,-408.01171172,0.00027639,2]
[355073682,1740886332797,-500.0,0.00027639,2]
[355073683,1740886332807,-500.0,0.00027639,2]
[355073684,1740886332817,-500.0,0.00027639,2]
[355073685,1740886332827,-410.39642128,0.00027639,2]
[355073686,1740886332837,-500.0,0.00027639,2]
[355073687,1740886332847,-1228.22,0.00027639,2]
[355073688,1740886332857,-756.89,0.00027639,2]
[355073689,1740886332867,-585.74,0.00027639,2]
[355073690,1740886332877,-564.12,0.00027639,2]
[355073691,1740886332887,-685.69,0.00027639,2]
[355073692,1740886332898,-509.1,0.00027639,2]
[355073693,1740886332908,-500.0,0.00027639,2]
[355073694,1740886332919,-500.0,0.00027639,2]
[355073695,1740886332929,-766.25,0.00027639,2]
[355073696,1740886332939,-1706.06,0.00027639,2]
[355073697,1740886332950,-870.92,0.00027639,2]
[355073698,1740886332960,-531.24,0.00027639,2]
[355073699,1740886332970,-818.25,0.00027639,2]
[355073700,1740886332980,-855.68,0.00027639,2]
[355073701,1740886332990,-500.49,0.00027639,2]
[355073702,1740886333000,-630.0,0.00027639,2]
[355073703,1740886333011,-500.0,0.00027639,2]
[355073704,1740886333022,-500.0,0.00027639,2]
[355073705,1740886333033,-500.0,0.00027639,2]
[355073706,1740886333042,-500.0,0.00027639,2]
[355073707,1740886333052,-500.0,0.00027639,2]
[355073708,1740886333061,-410.93133337,0.00027639,2]
[355073709,1740886333071,-1052.31,0.00027639,2]
[355073710,1740886333081,-1446.78,0.00027639,2]
[355073711,1740886333091,-535.36643481,0.00027639,2]
[355073712,1740886333101,-607.0,0.00027639,2]
[355073713,1740886333110,-500.0,0.00027639,2]
[355073714,1740886333120,-500.0,0.00027639,2]
[355073715,1740886333131,-500.0,0.00027639,2]
[355073716,1740886333141,-500.0,0.00027639,2]
[355073717,1740886333151,-1818.63,0.00027639,2]
[355073718,1740886333161,-500.0,0.00027639,2]
[355073719,1740886333171,-500.0,0.00027639,2]
[355073720,1740886333181,-500.0,0.00027639,2]
[355073721,1740886333191,-618.37,0.00027639,2]
[355073722,1740886333202,-604.16,0.00027639,2]
[355073723,1740886333211,-500.0,0.00027639,2]
[355073724,1740886333221,-500.0,0.00027639,2]
[355073725,1740886333230,-938.5,0.00027639,2]
[355073726,1740886333240,-373.12679676,0.00027639,2]
[355073727,1740886333252,-801.7,0.00027639,2]
[355073728,1740886333261,-500.0,0.00027639,2]
[355073729,1740886333271,-1129.81,0.00027639,2]
[355073730,1740886333280,-8270.53,0.00027639,2]
[355073731,1740886333291,-1547.95,0.00027639,2]
[355073732,1740886333301,-27555.16,0.00027639,2]
[355073733,1740886333311,-1394.09,0.00027639,2]
[355073734,1740886333321,-1310.16,0.00027639,2]
[355073735,1740886333333,-1400.07,0.00027639,2]
[355073736,1740886333343,-3117.57,0.00027639,2]
[355073737,1740886333353,-2046.05,0.00027639,2]
[355073738,1740886333362,-3193.9,0.00027639,2]
[355073739,1740886333372,-561.08470772,0.00027639,2]
[355073740,1740886333382,-2337.31,0.00027639,2]
[355073741,1740886333392,-500.0,0.00027639,2]
[355073742,1740886333402,-617.74,0.00027639,2]
[355073743,1740886333412,-281943.9,0.00027639,2]
[355073744,1740886333423,-500.0,0.00027639,2]
[355073745,1740886333434,-737.91,0.00027639,2]
[355073746,1740886333444,-549.97,0.00027639,2]
[355073747,1740886333453,-6435.74,0.00027639,2]
[355073748,1740886333463,-500.0,0.00027639,2]
[355073749,1740886333473,-500.0,0.00027639,2]
[355073750,1740886333483,-3670.05,0.00027639,2]
[355073751,1740886333493,-8285.81,0.00027639,2]
[355073752,1740886333503,-546.48476862,0.00027639,2]
[355073753,1740886333513,-794.47,0.00027639,2]
[355073754,1740886333523,-1888.44,0.00027639,2]
[355073755,1740886333533,-500.0,0.00027639,2]
[355073756,1740886333543,-1071.59,0.00027639,2]
[355073757,1740886333560,-603.56,0.00027639,2]
[355073758,1740886333584,-1646.49,0.00027639,2]
[355073759,1740886333604,-2181.0,0.00027639,2]
[355073760,1740886333629,-2015.79,0.00027639,2]
[355073761,1740886333652,-500.0,0.00027639,2]
[355073762,1740886333674,-1677.97,0.00027639,2]
[355073763,1740886333693,-2507.59,0.00027639,2]
[355073764,1740886333715,-500.0,0.00027639,2]
[355073765,1740886333733,-434.8574574,0.00027639,2]
[355073766,1740886333753,-500.0,0.00027639,2]
[355073767,1740886333777,-22763.45625532,0.00027666,2]
[355073768,1740886333800,-505.0,0.0002767,2]
[355073769,1740886333814,-25000.0,0.00027671,3]
[355073770,1740886333837,-157.3568261,0.00027671,30]
[355073771,1740886333853,-355.9410457,0.00027671,30]
[355073772,1740886333873,-205.69271906,0.00027693,4]
[355073773,1740886333889,-160.0,0.000277,3]
[355073774,1740886333906,-687.36,0.00027748,2]
[355073775,1740886333924,-1084.31,0.00027748,2]
[355073776,1740886333940,-896.18,0.00027748,2]
[355073777,1740886333956,-500.0,0.00027748,2]
[355073778,1740886333974,-500.0,0.00027748,2]
[355073779,1740886333990,-1218.11,0.00027748,2]
[355073780,1740886334006,-828.57,0.00027748,2]
[355073781,1740886334022,-500.0,0.00027748,2]
[355073782,1740886334039,-695.69,0.00027748,2]
[355073783,1740886334056,-500.0,0.00027748,2]
[355073784,1740886334072,-1314.21,0.00027748,2]
[355073785,1740886334088,-905.22,0.00027748,2]
[355073786,1740886334105,-555.41060639,0.00027748,2]
[355073787,1740886334121,-614.99,0.00027748,2]
[355073788,1740886334139,-1289.22,0.00027748,2]
[355073789,1740886334155,-598.14,0.00027748,2]
[355073790,1740886334174,-2226.86,0.00027748,2]
[355073791,1740886334192,-2581.24,0.00027748,2]
[355073792,1740886334208,-500.0,0.00027748,2]
[355073793,1740886334224,-1739.44,0.00027748,2]
[355073794,1740886334243,-1169.44,0.00027748,2]
[355073795,1740886334262,-500.0,0.00027748,2]
[355073796,1740886334279,-756.25,0.00027748,2]
[355073797,1740886334298,-1204.9,0.00027748,2]
[355073798,1740886334316,-500.0,0.00027748,2]
[355073799,1740886334334,-1004.4,0.00027748,2]
[355073800,1740886334352,-4788.78,0.00027748,2]
[355073801,1740886334370,-531.68,0.00027748,2]
[355073802,1740886334388,-3299.15,0.00027748,2]
[355073803,1740886334406,-500.0,0.00027748,2]
[355073804,1740886334424,-3768.09,0.00027748,2]
[355073805,1740886334441,-1428.31,0.00027748,2]
[355073806,1740886334457,-851.2,0.00027748,2]
[355073807,1740886334474,-2684.0,0.00027748,2]
[355073808,1740886334489,-4323.02,0.00027748,2]
[355073809,1740886334507,-782.1,0.00027748,2]
[355073810,1740886334522,-590.63,0.00027748,2]
[355073811,1740886334532,-1784.14,0.00027748,2]
[355073812,1740886334541,-1315.96,0.00027748,2]
[355073813,1740886334551,-659.17,0.00027748,2]
[355073814,1740886334561,-1228.88,0.00027748,2]
[355073815,1740886334571,-666.93,0.00027748,2]
[355073816,1740886334581,-1449.12,0.00027748,2]
[355073817,1740886334590,-505.18,0.00027748,2]
[355073818,1740886334599,-1090.34,0.00027748,2]
[355073819,1740886334609,-2634.31,0.00027748,2]
[355073820,1740886334618,-500.0,0.00027748,2]
[355073821,1740886334628,-569.32,0.00027748,2]
[355073822,1740886334638,-6333.26,0.00027748,2]
[355073823,1740886334648,-500.0,0.00027748,2]
[355073824,1740886334657,-500.0,0.00027748,2]
[355073825,1740886334666,-500.0,0.00027748,2]
[355073826,1740886334676,-500.0,0.00027748,2]
[355073827,1740886334685,-1915.38,0.00027748,2]
[355073828,1740886334695,-500.51,0.00027749,2]
[355073829,1740886334704,-500.0,0.00027749,2]
[355073830,1740886334714,-591.09,0.00027749,2]
[355073831,1740886334723,-553.7,0.00027749,2]
[355073832,1740886334732,-524.51,0.00027749,2]
[355073833,1740886334742,-1474.58,0.00027749,2]
[355073834,1740886334751,-500.0,0.00027749,2]
[355073835,1740886334761,-687.64,0.00027749,2]
[355073836,1740886334770,-521.17,0.00027749,2]
[355073837,1740886334779,-928.01,0.00027749,2]
[355073838,1740886334789,-500.0,0.00027749,2]
[355073839,1740886334798,-583.22,0.00027749,2]
[355073840,1740886334808,-500.0,0.00027749,2]
[355073841,1740886334818,-821.72,0.00027749,2]
[355073842,1740886334828,-703.97,0.00027749,2]
[355073843,1740886334837,-646.1,0.00027749,2]
[355073844,1740886334847,-1413.57,0.00027749,2]
[355073845,1740886334856,-548.28,0.00027749,2]
[355073846,1740886334866,-1102.8,0.00027749,2]
[355073847,1740886334876,-694.6,0.00027749,2]
[355073848,1740886334885,-540.61,0.00027749,2]
[355073849,1740886334895,-506.13046819,0.00027749,2]
[355073850,1740886334904,-500.0,0.00027749,2]
[355073851,1740886334913,-623.08,0.00027749,2]
[355073852,1740886334923,-1137.28,0.00027749,2]
[355073853,1740886334932,-1017.35,0.00027749,2]
[355073854,1740886334942,-1330.22,0.00027749,2]
[355073855,1740886334951,-282.31063899,0.00027749,2]
[355073856,1740886334961,-1066.57,0.00027749,2]
[355073857,1740886334971,-500.0,0.00027749,2]
[355073858,1740886334980,-2368.56,0.00027749,2]
[355073859,1740886334990,-1359.76,0.00027749,2]
[355073860,1740886334999,-3250.0,0.000279,13]
[355073861,1740886335009,-13513.14,0.000279,2]
[355073862,1740886335019,-7624.93,0.000279,2]
[355073863,1740886335028,-1615.71,0.000279,5]
[355073864,1740886335038,-2961.69,0.000279,2]
[355073865,1740886335048,-155.378755,0.000279,10]
[355073866,1740886335058,-2330.23,0.000279,2]
[355073867,1740886335067,-2306.22,0.000279,2]
[355073868,1740886335076,-500.0,0.000279,2]
[355073869,1740886335086,-850.0,0.00027908,5]
[355073870,1740886335095,-632.19,0.00027912,2]
[355073871,1740886335106,-2053.23,0.00027912,2]
[355073872,1740886335115,-1289.53,0.00027912,2]
[355073873,1740886335125,-542.79,0.00027912,2]
[355073874,1740886335135,-729.52,0.00027912,2]
[355073875,1740886335145,-2911.18,0.00027912,2]
[355073876,1740886335155,-543.53,0.00027912,2]
[355073877,1740886335165,-1263.1,0.00027912,2]
[355073878,1740886335175,-2931.73,0.00027912,2]
[355073879,1740886335185,-500.0,0.00027912,2]
[355073880,1740886335194,-1979.56,0.00027912,2]
[355073881,1740886335204,-523.18,0.00027912,2]
[355073882,1740886335214,-247.64,0.00027912,2]
[355073883,1740886335224,-500.0,0.00027912,2]
[355073884,1740886335234,-2314.06,0.00027912,2]
[355073885,1740886335243,-2260.58,0.00027912,2]
[355073886,1740886335257,-828.38,0.00027912,2]
[355073887,1740886335268,-500.0,0.00027912,2]
[355073888,1740886335278,-2081.84,0.00027912,2]
[355073889,1740886335288,-1076.19,0.00027912,2]
[355073890,1740886335299,-1339.9,0.00027912,2]
[355073891,1740886335309,-500.0,0.00027912,2]
[355073892,1740886335319,-3469.31,0.00027912,2]
[355073893,1740886335328,-1990.46,0.00027912,2]
[355073894,1740886335338,-971.07,0.00027912,2]
[355073895,1740886335348,-1249.98,0.00027912,2]
[355073896,1740886335358,-2179.06,0.00027912,2]
[355073897,1740886335367,-1012.24,0.00027912,2]
[355073898,1740886335377,-3060.91,0.00027912,2]
[355073899,1740886335388,-559.99,0.00027912,2]
[355073900,1740886336160,-615.9,0.00027912,2]
[355073901,1740886336181,-1996.5,0.00027912,2]
[355073902,1740886336202,-4060.12,0.00027912,2]
[355073903,1740886336221,-10606.09,0.00027912,2]
[355073904,1740886336240,-2799.89,0.00027912,2]
[355073905,1740886336255,-1333.19,0.00027912,2]
[355073906,1740886336264,-719.18,0.00027912,2]
[355073907,1740886336274,-835.72,0.00027912,2]
[355073908,1740886336284,-1367.07,0.00027912,2]
[355073909,1740886336294,-2939.4,0.00027912,2]
[355073910,1740886336304,-1214.18,0.00027912,2]
[355073911,1740886336313,-4481.86,0.00027912,2]
[355073912,1740886336323,-548.69,0.00027912,2]
[355073913,1740886336332,-659.46,0.00027912,2]
[355073914,1740886336342,-4158.95,0.00027912,2]
[355073915,1740886336352,-500.0,0.00027912,2]
[355073916,1740886336362,-848.25,0.00027912,2]
[355073917,1740886336371,-25489.85,0.00027912,2]
[355073918,1740886336386,-1593.02,0.00027912,2]
[355073919,1740886336395,-3140.53,0.00027912,2]
[355073920,1740886336405,-716.21,0.00027912,2]
[355073921,1740886336415,-500.0,0.00027912,2]
[355073922,1740886336425,-4639.3,0.00027912,2]
[355073923,1740886336434,-500.0,0.00027912,2]
[355073924,1740886336444,-14182.49,0.00027912,2]
[355073925,1740886336454,-1188.6,0.00027912,2]
[355073926,1740886336463,-592.63,0.00027912,2]
[355073927,1740886336473,-1643.74,0.00027912,2]
[355073928,1740886336482,-12307.96,0.00027912,2]
[355073929,1740886336492,-1368.42,0.00027912,2]
[355073930,1740886336501,-669.91,0.00027912,2]
[355073931,1740886336511,-500.0,0.00027912,2]
[355073932,1740886336521,-3975.37,0.00027912,2]
[355073933,1740886336531,-501.67,0.00027912,2]
[355073934,1740886336540,-1802.14,0.00027912,2]
[355073935,1740886336550,-962.58,0.00027912,2]
[355073936,1740886336559,-789.66,0.00027912,2]
[355073937,1740886336568,-1159.12,0.00027912,2]
[355073938,1740886336578,-20055.8,0.00027912,2]
[355073939,1740886336587,-2419.35,0.00027912,2]
[355073940,1740886336597,-4017.73,0.00027912,2]
[355073941,1740886336607,-2550.68,0.00027912,2]
[355073942,1740886336616,-1400.73,0.00027912,2]
[355073943,1740886336625,-596.32,0.00027912,2]
[355073944,1740886336635,-718.57,0.00027912,2]
[355073945,1740886336645,-1849.98,0.00027912,2]
[355073946,1740886336654,-18199.11,0.00027912,2]
[355073947,1740886336666,-500.0,0.00027912,2]
[355073948,1740886336676,-6307.07,0.00027912,2]
[355073949,1740886336685,-3500.41,0.00027912,2]
[355073950,1740886336694,-740.47,0.00027912,2]
[355073951,1740886336704,-500.0,0.00027912,2]
[355073952,1740886336713,-1093.67,0.00027912,2]
[355073953,1740886336723,-11719.04,0.00027912,2]
[355073954,1740886336735,-2757.89,0.00027912,2]
[355073955,1740886336744,-1586.33,0.00027912,2]
[355073956,1740886336756,-23789.19,0.00027912,2]
[355073957,1740886336765,-1230.43,0.00027912,2]
[355073958,1740886336774,-3144.58,0.00027912,2]
[355073959,1740886336783,-733.81,0.00027912,2]
[355073960,1740886336794,-6887.34,0.00027912,2]
[355073961,1740886336803,-526.15,0.00027913,2]
[355073962,1740886336813,-1168.03,0.00027913,2]
[355073963,1740886336823,-500.0,0.00027913,2]
[355073964,1740886336835,-930.89,0.00027913,2]
[355073965,1740886336844,-602.99,0.00027913,2]
[355073966,1740886336854,-500.03,0.00027913,2]
[355073967,1740886336864,-912.13,0.00027913,2]
[355073968,1740886336873,-500.0,0.00027913,2]
[355073969,1740886336882,-150.8564421,0.00027913,2]
[355073970,1740886336892,-860.85,0.00027913,2]
[355073971,1740886336901,-500.0,0.00027913,2]
[355073972,1740886336911,-500.0,0.00027913,2]
[355073973,1740886336920,-500.0,0.00027913,2]
[355073974,1740886336929,-500.0,0.00027913,2]
[355073975,1740886336939,-1228.22,0.00027913,2]
[355073976,1740886336948,-756.89,0.00027913,2]
[355073977,1740886336958,-585.74,0.00027913,2]
[355073978,1740886336968,-564.12,0.00027913,2]
[355073979,1740886336978,-685.69,0.00027913,2]
[355073980,1740886336988,-509.1,0.00027913,2]
[355073981,1740886336998,-500.0,0.00027913,2]
[355073982,1740886337007,-500.0,0.00027913,2]
[355073983,1740886337017,-766.25,0.00027913,2]
[355073984,1740886337027,-1706.06,0.00027913,2]
[355073985,1740886337036,-870.92,0.00027913,2]
[355073986,1740886337046,-531.24,0.00027913,2]
[355073987,1740886337056,-818.25,0.00027913,2]
[355073988,1740886337065,-855.68,0.00027913,2]
[355073989,1740886337076,-500.49,0.00027913,2]
[355073990,1740886337086,-630.0,0.00027913,2]
[355073991,1740886337096,-500.0,0.00027913,2]
[355073992,1740886337106,-500.0,0.00027913,2]
[355073993,1740886337116,-500.0,0.00027913,2]
[355073994,1740886337126,-255.99880739,0.00027913,2]
[355073995,1740886337136,-500.0,0.00027913,2]
[355073996,1740886337146,-1052.31,0.00027913,2]
[355073997,1740886337155,-1446.78,0.00027913,2]
[355073998,1740886337165,-607.0,0.00027913,2]
[355073999,1740886337175,-500.0,0.00027913,2]
[355074000,1740886337185,-500.0,0.00027913,2]
[355074001,1740886337195,-642.31026974,0.00027913,2]
[355074002,1740886337206,-500.0,0.00027913,2]
[355074003,1740886337215,-1818.63,0.00027913,2]
[355074004,1740886337225,-522.9482403,0.00027913,2]
[355074005,1740886337236,-500.0,0.00027913,2]
[355074006,1740886337247,-500.0,0.00027913,2]
[355074007,1740886337261,-618.37,0.00027913,2]
[355074008,1740886337271,-604.16,0.00027913,2]
[355074009,1740886337280,-500.0,0.00027913,2]
[355074010,1740886337291,-500.0,0.00027913,2]
[355074011,1740886337300,-938.5,0.00027913,2]
[355074012,1740886337310,-801.7,0.00027913,2]
[355074013,1740886337319,-500.0,0.00027913,2]
[355074014,1740886337330,-1129.81,0.00027913,2]
[355074015,1740886337340,-8270.53,0.00027913,2]
[355074016,1740886337350,-1547.95,0.00027913,2]
[355074017,1740886337360,-27555.16,0.00027913,2]
[355074018,1740886337370,-1394.09,0.00027913,2]
[355074019,1740886337380,-1310.16,0.00027913,2]
[355074020,1740886337391,-1400.07,0.00027913,2]
[355074021,1740886337400,-3117.57,0.00027913,2]
[355074022,1740886337410,-2046.05,0.00027913,2]
[355074023,1740886337420,-3193.9,0.00027913,2]
[355074024,1740886337430,-2337.31,0.00027913,2]
[355074025,1740886337440,-233.0280842,0.00027913,2]
[355074026,1740886337450,-617.74,0.00027913,2]
[355074027,1740886337460,-281943.9,0.00027913,2]
[355074028,1740886337469,-500.0,0.00027913,2]
[355074029,1740886337479,-737.91,0.00027913,2]
[355074030,1740886337488,-549.97,0.00027913,2]
[355074031,1740886337498,-6435.74,0.00027913,2]